fUSD/lending_fUSD_20250620
["ID","MTS","AMOUNT","RATE_DAILY","PERIOD"]
[366730227,1750421476333,-490.0,0.00026286,4]
[366730228,1750421476343,-490.0,0.00026286,4]
[366730229,1750421476353,-490.0,0.00026286,4]
[366730230,1750421476363,-2635.79,0.00026286,4]
[366730231,1750421476372,-572.61,0.00026286,4]
[366730232,1750421476382,-490.0,0.00026286,4]
[366730233,1750421476392,-490.0,0.00026286,4]
[366730234,1750421476402,-490.0,0.00026286,4]
[366730235,1750421476412,-490.0,0.00026286,4]
[366730236,1750421476422,-1524.53,0.00026286,4]
[366730237,1750421476432,-490.0,0.00026286,4]
[366730238,1750421476442,-775.92,0.00026286,4]
[366730239,1750421476452,-283.42,0.00026286,4]
[366730240,1750421476464,-490.0,0.00026286,4]
[366730241,1750421476473,-490.0,0.00026286,4]
[366730242,1750421476484,-490.0,0.00026286,4]
[366730243,1750421476494,-1070.15,0.00026286,4]
[366730244,1750421476504,-490.0,0.00026286,4]
[366730245,1750421476513,-490.0,0.00026286,4]
[366730246,1750421476522,-490.0,0.00026286,4]
[366730247,1750421476531,-338.15,0.00026286,2]
[366730248,1750421476541,-490.0,0.00026286,4]
[366730249,1750421476551,-1384.12,0.00026286,4]
[366730250,1750421476561,-697.44,0.00026286,4]
[366730251,1750421476572,-1442.62,0.00026286,2]
[366730252,1750421476581,-490.0,0.00026286,2]
[366730253,1750421476591,-490.0,0.00026286,4]
[366730254,1750421476600,-850.66,0.00026286,4]
[366730255,1750421476610,-490.0,0.00026286,4]
[366730256,1750421476620,-490.0,0.00026287,4]
[366730257,1750421476630,-151.0,0.00026287,7]
[366730258,1750421476640,-490.0,0.00026287,4]
[366730259,1750421476650,-520.09,0.00026287,4]
[366730260,1750421476659,-580.95,0.00026287,4]
[366730261,1750421476670,-490.0,0.00026287,4]
[366730262,1750421476680,-490.0,0.00026287,4]
[366730263,1750421476689,-490.0,0.00026287,4]
[366730264,1750421476700,-446.07448804,0.00026287,4]
[366730265,1750421476712,-737.63,0.00026287,4]
[366730266,1750421476724,-323.56,0.00026287,4]
[366730267,1750421476734,-490.0,0.00026287,4]
[366730268,1750421476743,-490.0,0.00026287,4]
[366730269,1750421476753,-1129.363233,0.00026287,7]
[366730270,1750421476763,-490.0,0.00026287,4]
[366730271,1750421476774,-490.0,0.00026287,4]
[366730272,1750421476785,-1024.56,0.00026287,4]
[366730273,1750421476796,-490.0,0.00026287,4]
[366730274,1750421476806,-206.64,0.00026287,4]
[366730275,1750421476817,-490.0,0.00026287,4]
[366730276,1750421476828,-506.13,0.00026287,4]
[366730277,1750421476839,-623.89,0.00026287,4]
[366730278,1750421476849,-490.0,0.00026287,4]
[366730279,1750421476858,-1265.53,0.00026287,4]
[366730280,1750421476868,-490.0,0.00026287,4]
[366730281,1750421476878,-309.97,0.00026287,4]
[366730282,1750421476888,-322.91104271,0.00026287,4]
[366730283,1750421476898,-490.0,0.00026287,4]
[366730284,1750421476908,-383.24955487,0.00026287,4]
[366730285,1750421477126,-106.75044513,0.00026287,4]
[366730286,1750421477136,-490.0,0.00026287,4]
[366730287,1750421477146,-160.69,0.00026287,4]
[366730288,1750421477156,-490.0,0.00026287,4]
[366730289,1750421477166,-490.0,0.00026287,4]
[366730290,1750421477176,-420.47,0.00026287,4]
[366730291,1750421477186,-490.0,0.00026287,4]
[366730292,1750421477197,-192.7,0.00026287,4]
[366730293,1750421477207,-490.0,0.00026287,4]
[366730294,1750421477217,-674.41,0.00026287,4]
[366730295,1750421477228,-717.4,0.00026287,4]
[366730296,1750421477237,-957.71,0.00026287,4]
[366730297,1750421477247,-490.0,0.00026287,4]
[366730298,1750421477257,-490.0,0.00026287,4]
[366730299,1750421477266,-650.52,0.00026287,4]
[366730300,1750421477344,-490.0,0.00026287,4]
[366730301,1750421477355,-602.94,0.00026287,4]
[366730302,1750421477365,-490.0,0.00026287,4]
[366730303,1750421477375,-648.13,0.00026287,4]
[366730304,1750421477384,-164.96,0.00026287,4]
[366730305,1750421477394,-490.0,0.00026287,4]
[366730306,1750421477404,-490.0,0.00026287,4]
[366730307,1750421477414,-352.51,0.00026287,4]
[366730308,1750421477423,-490.0,0.00026287,4]
[366730309,1750421477433,-647.264905,0.00026287,7]
[366730310,1750421477444,-5.53575397,0.00026287,4]
[366730311,1750421477457,-484.46424603,0.00026287,4]
[366730312,1750421477467,-647.264905,0.00026287,7]
[366730313,1750421477476,-490.0,0.00026287,4]
[366730314,1750421477486,-490.0,0.00026287,4]
[366730315,1750421477496,-874.27,0.00026287,4]
[366730316,1750421477506,-490.0,0.00026287,4]
[366730317,1750421477516,-1995.75,0.00026287,4]
[366730318,1750421477526,-466.63,0.00026287,4]
[366730319,1750421477535,-490.0,0.00026287,4]
[366730320,1750421477545,-559.86,0.00026287,4]
[366730321,1750421477555,-490.0,0.00026287,4]
[366730322,1750421477564,-490.0,0.00026287,4]
[366730323,1750421477575,-490.0,0.00026287,4]
[366730324,1750421477585,-490.0,0.00026287,4]
[366730325,1750421477595,-490.0,0.00026287,4]
[366730326,1750421477604,-490.0,0.00026287,4]
[366730327,1750421477614,-490.0,0.00026287,4]
[366730328,1750421477624,-490.0,0.00026287,4]
[366730329,1750421477634,-1332.32,0.00026287,4]
[366730330,1750421477644,-490.0,0.00026287,4]
[366730331,1750421477654,-490.0,0.00026287,4]
[366730332,1750421477664,-490.0,0.00026287,4]
[366730333,1750421477674,-490.0,0.00026287,4]
[366730334,1750421477684,-490.0,0.00026287,4]
[366730335,1750421477694,-490.0,0.00026287,4]
[366730336,1750421477703,-490.0,0.00026287,4]
[366730337,1750421477719,-490.0,0.00026287,4]
[366730338,1750421477728,-365.53,0.00026287,4]
[366730339,1750421477738,-490.0,0.00026287,4]
[366730340,1750421477748,-490.0,0.00026287,4]
[366730341,1750421477758,-490.0,0.00026287,4]
[366730342,1750421477767,-490.0,0.00026287,4]
[366730343,1750421477776,-490.0,0.00026287,4]
[366730344,1750421477786,-490.0,0.00026287,4]
[366730345,1750421477795,-490.0,0.00026287,4]
[366730346,1750421477805,-490.0,0.00026287,4]
[366730347,1750421477814,-490.0,0.00026287,4]
[366730348,1750421477824,-490.0,0.00026287,4]
[366730349,1750421477834,-1001.49,0.00026287,4]
[366730350,1750421477843,-469.81,0.00026287,4]
[366730351,1750421477853,-490.0,0.00026287,4]
[366730352,1750421477863,-490.0,0.00026287,4]
[366730353,1750421477872,-490.0,0.00026287,4]
[366730354,1750421477882,-960.43,0.00026287,4]
[366730355,1750421477891,-490.0,0.00026287,4]
[366730356,1750421477900,-490.0,0.00026287,4]
[366730357,1750421477910,-248.43,0.00026287,4]
[366730358,1750421477919,-547.08,0.00026287,4]
[366730359,1750421477929,-613.82278621,0.00026287,4]
[366730360,1750421477943,-459.48999997,0.00026287,4]
[366730361,1750421477969,-385.0,0.00025739,4]
[366730362,1750421477984,-151.0,0.00025729,7]
[366730363,1750421477994,-105.0,0.00025739,4]
[366730364,1750421478004,-490.0,0.00026012,4]
[366730365,1750421478014,-43.23721382,0.00026287,4]
[366730366,1750421478023,-577.94,0.00026287,4]
[366730367,1750421478032,-490.0,0.00026287,4]
[366730368,1750421478042,-278.87,0.00026287,4]
[366730369,1750421478051,-490.0,0.00026287,4]
[366730370,1750421478060,-224.98650064,0.00026287,4]
[366730371,1750421479638,200.0,0.00022941,2]
[366730373,1750421511700,0.24,0.000253,120]
[366730374,1750421511727,300.0,0.000253,120]
[366730376,1750421534837,-437.64387925,0.000259,14]
[366730377,1750421545226,0.35612075,0.00025,120]
[366730378,1750421545250,833.03387925,0.00025,120]
[366730379,1750421564635,-437.64387908,0.00026348,14]
[366730380,1750421584301,-747.0,0.00025786,10]
[366730387,1750421660940,438.0,0.000259,14]
[366730388,1750421660970,0.35612092,0.000259,14]
[366730389,1750421660999,59.26121537,0.000259,14]
[366730390,1750421661165,378.73878463,0.00026348,14]
[366730392,1750421668073,-500.0,0.00027546,120]
[366730399,1750421708983,261.27,0.00024814,120]
[366730402,1750421822073,-263.911,0.00025961,11]
[366730403,1750421822097,-3485.089,0.00025975,11]
[366730412,1750421874572,-468.0,0.000259,14]
[366730413,1750421892032,-0.40546567,0.000259,14]
[366730414,1750421892098,-467.59453433,0.00026348,14]
[366730422,1750422054314,159.02,0.00013699,2]
[366730425,1750422061321,-437.0,0.000259,14]
[366730428,1750422074991,-0.20546567,0.000259,14]
[366730429,1750422075061,-436.79453433,0.00026348,14]
[366730435,1750422308708,302.31400795,0.0002,2]
[366730437,1750422323491,3024.68710953,0.0001994,2]
[366730438,1750422329151,5042.93386998,0.00016978,2]
[366730439,1750422330200,3341.29100291,0.000199,2]
[366730443,1750422410846,-408.0,0.000259,14]
[366730444,1750422430313,1107.87177208,0.00016435,2]
[366730446,1750422444779,-0.07213224,0.000259,14]
[366730447,1750422444803,-210.92786776,0.00025975,11]
[366730448,1750422461813,-2788.0,0.00025985,12]
[366730449,1750422487677,394.46972768,0.00025866,14]
[366730450,1750422487977,13.53027232,0.00026348,14]
[366730453,1750422524772,12747.57373381,0.00013368,2]
[366730455,1750422555299,-394.46972768,0.00026831,15]
[366730456,1750422558333,250.0,0.00015,2]
[366730457,1750422559416,218.78090405,0.00017,2]
[366730458,1750422559442,81.21909595,0.00017,2]
[366730467,1750422562703,151.73771048,0.00022941,2]
[366730468,1750422562910,201.21046431,0.00022941,2]
[366730469,1750422586307,-394.0,0.000252,12]
[366730470,1750422600293,-394.0,0.00025383,13]
[366730481,1750422631427,-380.93945536,0.00026348,14]
[366730482,1750422631459,-201.0,0.00023775,2]
[366730483,1750422631471,-138.94540528,0.00023852,2]
[366730484,1750422631488,-266.72772072,0.00023852,2]
[366730485,1750422631498,-159.02,0.00023973,2]
[366730486,1750422631508,-1200.0,0.00023999,2]
[366730487,1750422631519,-300.0,0.00023999,2]
[366730488,1750422631530,-300.0,0.00023999,2]
[366730489,1750422631541,-2732.75227928,0.00024,7]
[366730490,1750422631554,-4438.59865489,0.00024,7]
[366730491,1750422631566,-675.00168085,0.00024,7]
[366730492,1750422631756,-329.76386651,0.00024,7]
[366730493,1750422631768,-14403.65983066,0.00024,7]
[366730494,1750422631779,-166.87,0.0002456,2]
[366730495,1750422631788,-12166.52,0.00024623,2]
[366730496,1750422631798,-666.0,0.00024623,2]
[366730497,1750422631808,-200.0,0.00024667,7]
[366730498,1750422631818,-862.3,0.00024673,2]
[366730499,1750422631828,-952.13,0.00024716,2]
[366730500,1750422631838,-325.0,0.00024999,2]
[366730501,1750422631848,-2593.93224727,0.00025,2]
[366730502,1750422631859,-201.0,0.00025168,4]
[366730504,1750422631868,-0.46972789,0.000252,12]
[366730505,1750422631878,-1000.0,0.00025324,2]
[366730507,1750422631888,-207.4,0.00025352,2]
[366730509,1750422631898,-1957.856,0.00025352,2]
[366730511,1750422631908,-151.0,0.00025352,2]
[366730514,1750422631917,-6570.0,0.00025367,2]
[366730516,1750422631928,-0.46972768,0.00025383,13]
[366730519,1750422631938,-440.0,0.000254,4]
[366730522,1750422631948,-1427.29774605,0.00025407,2]
[366730524,1750422631958,-490.0,0.00025465,4]
[366730526,1750422631968,-490.0,0.00025465,4]
[366730527,1750422631978,-491.93237683,0.00025465,4]
[366730529,1750422631988,-490.0,0.00025465,4]
[366730532,1750422631999,-490.0,0.00025465,4]
[366730535,1750422632009,-490.0,0.00025465,4]
[366730538,1750422632019,-490.0,0.00025465,4]
[366730541,1750422632029,-490.0,0.00025465,4]
[366730542,1750422632038,-490.0,0.00025465,4]
[366730544,1750422632048,-490.0,0.00025465,4]
[366730546,1750422632058,-490.0,0.00025465,4]
[366730548,1750422632068,-490.0,0.00025465,4]
[366730550,1750422632078,-490.67925484,0.00025465,4]
[366730552,1750422632088,-490.0,0.00025465,4]
[366730553,1750422632099,-490.0,0.00025465,4]
[366730555,1750422632108,-490.0,0.00025465,4]
[366730557,1750422632118,-490.0,0.00025465,4]
[366730559,1750422632128,-490.0,0.00025465,4]
[366730561,1750422632138,-553.70555967,0.00025465,4]
[366730563,1750422632148,-490.0,0.00025465,4]
[366730564,1750422632158,-598.67128723,0.00025465,4]
[366730566,1750422632168,-490.0,0.00025465,4]
[366730568,1750422632178,-490.0,0.00025465,4]
[366730570,1750422632188,-490.0,0.00025465,4]
[366730572,1750422632198,-534.31,0.00025465,4]
[366730573,1750422632208,-490.0,0.00025465,4]
[366730575,1750422632218,-490.0,0.00025465,4]
[366730577,1750422632228,-490.0,0.00025465,4]
[366730579,1750422632238,-490.0,0.00025465,4]
[366730581,1750422632249,-543.97,0.00025465,4]
[366730583,1750422632259,-490.0,0.00025465,4]
[366730584,1750422632269,-490.0,0.00025465,4]
[366730586,1750422632279,-490.0,0.00025465,4]
[366730588,1750422632289,-490.0,0.00025465,4]
[366730590,1750422632299,-490.0,0.00025465,4]
[366730592,1750422632308,-490.0,0.00025465,4]
[366730594,1750422632318,-490.0,0.00025465,4]
[366730596,1750422632328,-490.0,0.00025465,4]
[366730597,1750422632338,-490.0,0.00025465,4]
[366730599,1750422632347,-490.0,0.00025465,4]
[366730601,1750422632357,-490.0,0.00025465,4]
[366730603,1750422632367,-490.0,0.00025465,4]
[366730605,1750422632377,-490.0,0.00025465,4]
[366730606,1750422632387,-490.0,0.00025465,4]
[366730608,1750422632397,-490.0,0.00025465,4]
[366730610,1750422632407,-490.0,0.00025465,4]
[366730612,1750422632417,-490.0,0.00025465,4]
[366730614,1750422632428,-490.0,0.00025465,4]
[366730616,1750422632438,-490.0,0.00025465,4]
[366730617,1750422632447,-490.0,0.00025465,4]
[366730619,1750422632457,-668.74,0.00025465,4]
[366730621,1750422632467,-28967.40541547,0.000256,3]
[366730623,1750422632477,-266.73836529,0.000256,3]
[366730625,1750422632487,-161.69689207,0.00025629,2]
[366730627,1750422632498,-518.60112684,0.00025637,7]
[366730629,1750422632508,-905.98848374,0.00025638,2]
[366730631,1750422632518,-166.15667266,0.00025638,2]
[366730633,1750422632528,-170.70507019,0.00025638,2]
[366730634,1750422632538,-289.35,0.00025727,2]
[366730636,1750422632548,-628.22,0.00025727,3]
[366730638,1750422632558,-490.0,0.00025729,4]
[366730640,1750422632569,-490.0,0.00025729,4]
[366730642,1750422632579,-490.0,0.00025729,4]
[366730644,1750422632590,-627.71041074,0.00025729,4]
[366730646,1750422632599,-490.0,0.00025729,4]
[366730648,1750422632610,-490.0,0.00025729,4]
[366730649,1750422632620,-490.0,0.00025729,4]
[366730650,1750422632630,-490.0,0.00025729,4]
[366730651,1750422632640,-543.31,0.00025729,4]
[366730652,1750422632650,-490.0,0.00025729,4]
[366730653,1750422632659,-490.0,0.00025729,4]
[366730654,1750422632669,-490.0,0.00025729,4]
[366730655,1750422632679,-428.22202802,0.00025729,4]
[366730656,1750422632689,-490.0,0.00025729,4]
[366730657,1750422632699,-1091.59,0.00025729,4]
[366730658,1750422632709,-629.37,0.00025729,4]
[366730659,1750422632719,-490.0,0.00025729,4]
[366730660,1750422632729,-490.0,0.00025729,4]
[366730661,1750422632739,-540.98,0.00025729,4]
[366730662,1750422632749,-619.6,0.00025729,4]
[366730663,1750422632759,-490.0,0.00025729,4]
[366730664,1750422632769,-574.35,0.00025729,4]
[366730665,1750422632779,-490.0,0.00025729,4]
[366730666,1750422632790,-490.0,0.00025729,4]
[366730667,1750422632800,-1663.12,0.00025729,4]
[366730668,1750422632811,-614.54,0.00025729,4]
[366730669,1750422632822,-490.0,0.00025729,4]
[366730670,1750422632833,-490.0,0.00025729,4]
[366730671,1750422632843,-490.0,0.00025729,4]
[366730672,1750422632854,-603.73,0.00025729,4]
[366730674,1750422632864,-490.0,0.00025729,4]
[366730675,1750422632874,-527.67409484,0.00025729,4]
[366730676,1750422632885,-490.0,0.00025729,4]
[366730678,1750422632896,-490.0,0.00025729,4]
[366730680,1750422632906,-490.0,0.00025729,4]
[366730682,1750422632916,-490.0,0.00025729,4]
[366730684,1750422632926,-490.0,0.00025729,4]
[366730687,1750422632936,-440.17230887,0.00025729,4]
[366730689,1750422632946,-490.0,0.00025729,4]
[366730691,1750422632956,-490.0,0.00025729,4]
[366730693,1750422632966,-490.0,0.00025729,4]
[366730695,1750422632976,-490.0,0.00025729,4]
[366730697,1750422632985,-490.0,0.00025729,4]
[366730699,1750422632997,-490.0,0.00025729,4]
[366730701,1750422633010,-358.45,0.00025729,4]
[366730703,1750422633020,-490.0,0.00025729,4]
[366730705,1750422633030,-490.0,0.00025729,4]
[366730707,1750422633040,-490.0,0.00025729,4]
[366730709,1750422633051,-582.34,0.00025729,4]
[366730711,1750422633061,-14815.306459,0.00025729,4]
[366730715,1750422637467,-1155.788706,0.00025729,4]
[366730716,1750422637524,-819.014835,0.00025729,4]
[366730717,1750422637534,-671.98,0.00025729,4]
[366730718,1750422637544,-3618.35,0.00025729,4]
[366730719,1750422637553,-2501.84,0.00025729,4]
[366730720,1750422637562,-490.0,0.00025729,4]
[366730721,1750422637572,-490.0,0.00025729,4]
[366730722,1750422637582,-490.0,0.00025729,4]
[366730723,1750422637591,-490.0,0.00025729,4]
[366730724,1750422637601,-490.0,0.00025729,4]
[366730725,1750422637611,-490.0,0.00025729,4]
[366730726,1750422637620,-490.0,0.00025729,4]
[366730727,1750422637629,-162.73603732,0.00025729,4]
[366730728,1750422637646,-327.26396268,0.00025729,4]
[366730729,1750422637656,-490.0,0.00025729,4]
[366730730,1750422637665,-490.0,0.00025729,4]
[366730731,1750422637675,-802.87,0.00025729,4]
[366730732,1750422637685,-490.0,0.00025729,4]
[366730733,1750422637694,-490.0,0.00025729,4]
[366730734,1750422637703,-210.54567148,0.00025729,4]
[366730735,1750422637730,-279.45432852,0.00025729,4]
[366730736,1750422637740,-490.0,0.00025729,4]
[366730738,1750422637751,-490.0,0.00025729,4]
[366730740,1750422637761,-490.0,0.00025729,4]
[366730742,1750422637770,-193.57,0.00025729,4]
[366730744,1750422637780,-918.49,0.00025729,4]
[366730745,1750422637790,-577.48567148,0.00025729,4]
[366731222,1750422642494,-889.56594259,0.00024623,2]
[366731229,1750422642551,-110.43405741,0.00024623,2]
[366731231,1750422642562,-703.67432852,0.00025729,4]
[366731233,1750422642571,-374.62,0.00025729,4]
[366731235,1750422642581,-490.0,0.00025729,4]
[366731237,1750422642591,-575.32,0.00025729,4]
[366731239,1750422642601,-649.76,0.00025729,4]
[366731241,1750422642611,-490.0,0.00025729,4]
[366731243,1750422642621,-490.0,0.00025729,4]
[366731245,1750422642630,-2404.98014608,0.00025729,4]
[366731247,1750422642642,-491.95238989,0.00025729,4]
[366731249,1750422642655,-810.66499319,0.00025729,4]
[366731251,1750422642666,-252.29742569,0.00025729,4]
[366731254,1750422642682,-3011.18504515,0.00025729,4]
[366731256,1750422642692,-490.0,0.00025729,4]
[366731258,1750422642702,-312.13803464,0.00025729,4]
[366731531,1750422645475,-177.86196536,0.00025729,4]
[366731533,1750422645486,-490.0,0.00025729,4]
[366731535,1750422645498,-729.4,0.00025729,4]
[366731537,1750422645508,-490.0,0.00025729,4]
[366731539,1750422645519,-490.0,0.00025729,4]
[366731541,1750422645529,-490.0,0.00025729,4]
[366731543,1750422645539,-490.0,0.00025729,4]
[366731545,1750422645549,-585.62551467,0.00025729,4]
[366731547,1750422645562,-2196.85448533,0.00025729,4]
[366731549,1750422645572,-1201.62,0.00025729,4]
[366731551,1750422645582,-188.08,0.00025729,4]
[366731553,1750422645592,-490.0,0.00025729,4]
[366731555,1750422645602,-490.0,0.00025729,4]
[366731557,1750422645613,-490.0,0.00025729,4]
[366731559,1750422645623,-905.18,0.00025729,4]
[366731561,1750422645632,-1143.86,0.00025729,4]
[366731563,1750422645645,-490.0,0.00025729,4]
[366731565,1750422645655,-490.0,0.00025729,4]
[366731567,1750422645666,-586.15,0.00025729,4]
[366731569,1750422645676,-490.0,0.00025729,4]
[366731571,1750422645687,-1790.71,0.00025729,4]
[366731573,1750422645698,-1054.16,0.00025729,4]
[366731575,1750422645708,-490.0,0.00025729,4]
[366731577,1750422645719,-490.0,0.00025729,4]
[366731579,1750422645730,-490.0,0.00025729,4]
[366731581,1750422645740,-490.0,0.00025736,4]
[366731583,1750422645751,-490.0,0.00025736,4]
[366731585,1750422645760,-490.0,0.00025736,2]
[366731587,1750422645770,-490.0,0.00025736,4]
[366731589,1750422645785,-201.89493759,0.00025736,4]
[366731591,1750422645796,-490.0,0.00025736,4]
[366731593,1750422645807,-611.47,0.00025736,4]
[366731594,1750422645817,-490.0,0.00025736,4]
[366731595,1750422645828,-490.0,0.00025736,4]
[366731596,1750422645838,-490.0,0.00025736,4]
[366731597,1750422645848,-490.0,0.00025736,4]
[366731598,1750422645858,-490.0,0.00025736,4]
[366731599,1750422645868,-490.0,0.00025736,4]
[366731600,1750422645879,-610.26,0.00025736,4]
[366731601,1750422645889,-490.0,0.00025736,4]
[366731602,1750422645899,-490.0,0.00025737,4]
[366731603,1750422645909,-490.0,0.00025737,4]
[366731604,1750422645919,-490.0,0.00025737,4]
[366731605,1750422645930,-490.0,0.00025737,4]
[366731606,1750422645940,-490.0,0.00025737,4]
[366731607,1750422645949,-490.0,0.00025737,4]
[366731608,1750422645959,-490.0,0.00025737,4]
[366731609,1750422645969,-490.0,0.00025737,4]
[366731611,1750422645980,-490.0,0.00025737,4]
[366731613,1750422645990,-490.0,0.00025737,4]
[366731615,1750422646000,-489.62015759,0.00025737,4]
[366731617,1750422646011,-744.33,0.00025737,4]
[366731619,1750422646021,-490.0,0.00025737,4]
[366731621,1750422646030,-490.0,0.00025737,4]
[366731623,1750422646040,-635.11,0.00025737,4]
[366731625,1750422646050,-490.0,0.00025737,4]
[366731627,1750422646063,-886.68,0.00025737,4]
[366731629,1750422646072,-591.43,0.00025737,4]
[366731631,1750422646082,-490.0,0.00025737,4]
[366731633,1750422646091,-490.0,0.00025737,4]
[366731635,1750422646102,-490.0,0.00025737,4]
[366731637,1750422646111,-500.29,0.00025737,4]
[366731639,1750422646123,-490.0,0.00025737,4]
[366731641,1750422646136,-490.0,0.00025737,4]
[366731643,1750422646145,-828.07,0.00025737,4]
[366731645,1750422646155,-490.0,0.00025737,4]
[366731647,1750422646166,-572.19,0.00025737,4]
[366731649,1750422646175,-504.53013409,0.00025737,4]
[366731651,1750422646185,-490.0,0.00025737,4]
[366731653,1750422646195,-1110.27,0.00025737,4]
[366731655,1750422646205,-490.0,0.00025737,4]
[366731657,1750422646214,-490.0,0.00025737,4]
[366731660,1750422646229,-490.0,0.00025737,4]
[366731662,1750422646239,-490.0,0.00025737,4]
[366731664,1750422646250,-490.0,0.00025737,4]
[366731666,1750422646260,-491.85424855,0.00025737,4]
[366731668,1750422646270,-480.06,0.00025737,4]
[366731670,1750422646279,-491.81149996,0.00025737,4]
[366731672,1750422646289,-490.0,0.00025737,4]
[366731674,1750422646299,-496.42182418,0.00025737,4]
[366731676,1750422646309,-490.0,0.00025737,4]
[366731678,1750422646319,-491.36552824,0.00025737,4]
[366731680,1750422646329,-930.46,0.00025737,4]
[366731682,1750422646339,-490.0,0.00025737,4]
[366731684,1750422646349,-490.0,0.00025737,4]
[366731686,1750422646359,-1339.46,0.00025737,4]
[366731688,1750422646369,-269.91,0.00025737,4]
[366731690,1750422646379,-490.0,0.00025737,4]
[366731692,1750422646389,-490.0,0.00025737,4]
[366731694,1750422646398,-490.0,0.00025737,4]
[366731696,1750422646409,-490.0,0.00025737,4]
[366731698,1750422646419,-490.0,0.00025737,4]
[366731700,1750422646429,-661.2,0.00025737,4]
[366731702,1750422646439,-355.13,0.00025737,4]
[366731704,1750422646449,-490.0,0.00025737,4]
[366731706,1750422646459,-490.0,0.00025737,4]
[366731708,1750422646469,-399.18104166,0.00025737,4]
[366731711,1750422646483,-624.94584388,0.00025737,4]
[366731713,1750422646495,-259.86311446,0.00025737,4]
[366731715,1750422646506,-490.0,0.00025737,4]
[366731717,1750422646516,-490.0,0.00025737,4]
[366731719,1750422646526,-490.0,0.00025737,4]
[366731721,1750422646536,-490.0,0.00025737,4]
[366731723,1750422646545,-139.09460753,0.00025737,4]
[366731725,1750422646558,-350.90539247,0.00025737,4]
[366731727,1750422646567,-490.0,0.00025737,4]
[366731729,1750422646578,-906.34,0.00025737,4]
[366731731,1750422646589,-490.0,0.00025737,4]
[366731734,1750422646599,-490.0,0.00025737,4]
[366731736,1750422646609,-490.0,0.00025737,4]
[366731738,1750422646619,-490.0,0.00025737,4]
[366731740,1750422646630,-163.4,0.00025737,4]
[366731742,1750422646639,-490.0,0.00025737,4]
[366731744,1750422646649,-490.0,0.00025737,4]
[366731746,1750422646658,-4783.65,0.00025737,4]
[366731748,1750422646672,-490.0,0.00025737,4]
[366731750,1750422646682,-490.0,0.00025737,4]
[366731752,1750422646692,-12.99647895,0.00025737,4]
[366731754,1750422646704,-477.00352105,0.00025737,4]
[366731756,1750422646714,-490.0,0.00025737,4]
[366731758,1750422646725,-490.0,0.00025737,4]
[366731760,1750422646735,-582.02,0.00025737,4]
[366731762,1750422646745,-26.34983772,0.00025737,4]
[366731765,1750422646757,-463.65016228,0.00025737,4]
[366731767,1750422646767,-380.69516653,0.00025737,4]
[366731769,1750422646780,-697.78483347,0.00025737,4]
[366731771,1750422646790,-490.0,0.00025737,4]
[366731773,1750422646800,-277.59585626,0.00025737,4]
[366731775,1750422646810,-1002.91,0.00025737,4]